Workbook

Sheet 厨房设备+排烟设备
A1: 西站综合楼厨房设备+排烟系统招标采购控制价
A2: 编号 | B2: 设备名称 | C2: 尺寸(WxDxH) | D2: 技术参数 | E2: 单位 | F2: 数量 | G2: 单价最高限价（元） | H2: 金额（元） | I2: 产品图片 | J2: 备注
A3: AA一次更衣室
A4: AA01 | B4: 风幕机 | C4: L=1200MM | D4: 说明： 风幕机提供一道有效、强力的空气门,既可以挂在墙上，也可悬挂在房间天花板上,附设导风板可以容易地调整送风的方向,开关设于机体上，可提供高、低两种风速，安装于任何场合均能保持与周围环境的协调. | E4: 台 | F4: 1 | G4: 360 | H4: =ROUND(F4*G4,0) -> 360
A5: AA02 | B5: 更衣柜 | C5: 四门 | D5: 说明：采用优质冷轧板，喷漆工艺，静电封魔喷塑而成环保无毒，表面光滑，铝合金拉手，精致锁具，一门一锁， | E5: 台 | F5: 6 | G5: 650 | H5: =ROUND(F5*G5,0) -> 3900 | J5: 厂制品
A6: AA03 | B6: 干手器 | C6: 240*240*230 | D6: 功率：2KW 风速：大于18M/S 干手时间：12S 防水等 级：IPX1 规格：冷热型 | E6: 台 | F6: 2 | G6: 150 | H6: =ROUND(F6*G6,0) -> 300
A7: AA04 | B7: 洗手星 | C7: 400*300*450 | D7: 说明：采用优质304不锈钢板制作 1、台面采用δ1.0mm、304不锈钢板； 2、星盆斗采用δ1.0mm、304不锈钢机冲。 | E7: 台 | F7: 2 | G7: 750 | H7: =ROUND(F7*G7,0) -> 1500 | J7: 厂制品
A8: AB仓库
A9: AB01 | B9: 四门碗柜 | C9: 1200*500*1800 | D9: 说明：采用优质304不锈钢板制作 柜身:δ1.0mm、304不锈钢板 侧板:δ1.0mm、304不锈钢板 门板:δ1.0mm、304不锈钢板 层板:δ1.0mm、304不锈钢板 台脚通:δ1.0mm*51mm不锈钢连重力脚 采用轨道式吊轮无槽推门。 | E9: 台 | F9: 2 | G9: 2600 | H9: =ROUND(F9*G9,0) -> 5200 | J9: 厂制品
A10: AB04 | B10: 米面架 | C10: 1200*500*200 | D10: 说明：采用优质304不锈钢管制作 1、立柱采用1.0mm38*38、304不锈钢方管； 2、横档采用1.0mm38*38、中间38*25方管、304不锈钢方管； 3、调节脚采用全金属外包不锈钢可调式子弹脚； 4、为格栅式结构。 | E10: 台 | F10: 2 | G10: 650 | H10: 1300 | J10: 厂制品
A11: AB04-A | B11: 四层栅格层架 | C11: 1200*500*1500 | D11: 说明：采用优质304不锈钢管制作 1、立柱采用1.0mm38*38、304不锈钢方管； 2、横档采用1.0mm38*25、中间25方管、304不锈钢方管； 3、调节脚采用全金属外包不锈钢可调式子弹脚； 4、每层为格栅式结构，四层。 | E11: 台 | F11: 2 | G11: 1200 | H11: 2400 | J11: 厂制品
A12: AB05 | B12: 粘捕式灭蝇灯 | C12: 355*105*235 | D12: 1.电压：220V 2.功率:10W 3.用胶：粘性持久，不易干胶，安全环保。苍蝇背景图案：根据苍蝇聚集采食习惯设计, 增加飞虫诱捕效果 4.电子式镇流器：故障率低，寿命长，节能，具电压保护功能 5.U型卡槽设计：使特殊波长灯管光频 直射到粘蝇板的 各点距离均等，加强对飞虫的吸引力和诱捕效果 | E12: 台 | F12: 1 | G12: 50 | H12: 50
A13: AB06 | B13: 四层平板货架 | C13: 1200*500*1500 | D13: 说明：采用优质304不锈钢管制作 1、立柱采用1.0mm38*38、304不锈钢方管； 2、调节脚采用全金属外包不锈钢可调式子弹脚； 3、每层为平板式结构，四层。 | E13: 台 | F13: 2 | G13: 1200 | H13: 2400 | J13: 厂制品
A14: AB主、副食库，杂物
A15: AB03 | B15: 平板车 | C15: 850*500*850 | D15: 说明：采用优质304不锈钢板制作 1、车身采用δ1.0mm、优质不锈钢板； 2、设置车推手； 3、配4只防滑、耐磨万向轮优质胶轮，2只带刹车製。 | E15: 台 | F15: 1 | G15: 950 | H15: 950 | J15: 厂制品
A16: AB加工间
A17: AB09 | B17: 风幕机 | C17: L=1200MM | D17: 说明： 风幕机提供一道有效、强力的空气门,既可以挂在墙上，也可悬挂在房间天花板上,附设导风板可以容易地调整送风的方向,开关设于机体上，可提供高、低两种风速，安装于任何场合均能保持与周围环境的协调. | E17: 台 | F17: 1 | G17: 360 | H17: 360
A18: AC加工间
A19: AC01 | B19: 电热水器 | C19: 60L | D19: 1.密闭型储水式电热水器 2.款式: 横式 3.能效等级: 一级 | E19: 台 | F19: 2 | G19: 1000 | H19: 2000
A20: AC02 | B20: 高压花洒龙头 | C20: JXD-5805A | D20: 1.铜螺杆阀芯，一字手柄 2.开单孔22mm安装 3.不锈钢软管配大流量喷阀，耐热手柄 4.纯黄铜底座 | E20: 台 | F20: 1 | G20: 650 | H20: 650
A21: AC03 | B21: 风幕机 | C21: L=1200MM | D21: 说明： 风幕机提供一道有效、强力的空气门,既可以挂在墙上，也可悬挂在房间天花板上,附设导风板可以容易地调整送风的方向,开关设于机体上，可提供高、低两种风速，安装于任何场合均能保持与周围环境的协调. | E21: 台 | F21: 1 | G21: 360 | H21: 360
A22: AC04 | B22: 挂墙双层架 | C22: 2500*350*680 | D22: 说明：采用优质304不锈钢板制作 台面：δ1.0mm、304不锈钢板 | E22: 米 | F22: 2.5 | G22: 500 | H22: 1250 | J22: 厂制品
A23: AC05 | B23: 粘捕式灭蝇灯 | C23: 355*105*235 | D23: 1.电压：220V 2.功率:10W 3.用胶：粘性持久，不易干胶，安全环保。苍蝇背景图案：根据苍蝇聚集采食习惯设计, 增加飞虫诱捕效果 4.电子式镇流器：故障率低，寿命长，节能，具电压保护功能 5.U型卡槽设计：使特殊波长灯管光频 直射到粘蝇板的 各点距离均等，加强对飞虫的吸引力和诱捕效果 | E23: 台 | F23: 1 | G23: 50 | H23: 50
A24: AC06 | B24: 挂墙双层架 | C24: 5470*350*230 | D24: 说明：采用优质304不锈钢板制作 台面：δ1.0mm、304不锈钢板 | E24: 米 | F24: 5.47 | G24: 500 | H24: 2735 | J24: 厂制品
A25: AC07 | B25: 双层平板工作台带靠背 | C25: 1000*700*800+150 | D25: 说明：采用优质304不锈钢板制作 台面:δ1.0mm、304不锈钢板 层板:δ1.0mm、304不锈钢方板 立柱:δ1.0mm*直径51、304不锈钢圆管 台脚通:ф51不锈钢连子弹脚 支撑梁:不锈钢制作 | E25: 台 | F25: 1 | G25: 950 | H25: 950 | J25: 厂制品
A26: AC09 | B26: 双层平板工作台带靠背 | C26: 750*700*800+150 | D26: 说明：采用优质304不锈钢板制作 台面:δ1.0mm、304不锈钢板 层板:δ1.0mm、304不锈钢方板 立柱:δ1.0mm*直径51、304不锈钢圆管 台脚通:ф51不锈钢连子弹脚 支撑梁:不锈钢制作 | E26: 台 | F26: 2 | G26: 850 | H26: 1700 | J26: 厂制品
A27: AC10 | B27: 大单星盆水池 | C27: 1000*700*800+150 | D27: 说明：采用优质304不锈钢板制作 1、台面采用δ1.0mm、304不锈钢板； 2、星盆斗采用δ1.0mm、304不锈钢机冲； 3、脚管采用1.0mmφ38、304不锈钢圆管； 4、横档采用1.0mmφ25、304不锈钢圆管； 5、调节脚采用全金属外包不锈钢子弹脚； 6、大单星盆，配星盆去水槽，隔渣网。 | E27: 台 | F27: 4 | G27: 950 | H27: 3800 | J27: 厂制品
A28: AC11 | B28: 高压洗地枪 | C28: 10米 | D28: 说明：软管长度：10米 开发式 流量：5.37升/分钟 喉管自动回卷装置(棘轮系统，防锁死，棘轮保持放松) 软管，可承受120°C的高温以及300PSI高压 可安装于墙壁、天花板或台柜下； 配置喉管止动器，可调节； | E28: 台 | F28: 1 | G28: 1200 | H28: 1200
A29: AC12 | B29: 绞切肉机 | C29: 530*370*730 | D29: 功率：1.5KW 生产量：460KG/H 1、能绞切猪肉、牛肉、羊肉及其他各种肉类，所绞肉质细腻，所切肉片厚度均匀适中。 2、结构紧凑，性能可靠，效率高，操作简单方便。 | E29: 台 | F29: 1 | G29: 2600 | H29: 2600
A30: AC14 | B30: 杀鱼台 | C30: 1500*700*800+150 | D30: 说明：采用优质304不锈钢板制作 1、台面采用δ1.0mm、304不锈钢板； 2、星盆斗采用δ1.0mm、304不锈钢机冲； 3、脚管采用1.0mmφ38、304不锈钢圆管； 4、横档采用1.0mmφ25、304不锈钢圆管； 5、调节脚采用全金属外包不锈钢子弹脚； 6、右单星带板、配星盆去水槽，隔渣网。 | E30: 台 | F30: 1 | G30: 950 | H30: 950 | J30: 厂制品
A31: AD09-1 | B31: 双温水龙头 | C31: 双温 | D31: 说明：采用不锈钢制作 | E31: 台 | F31: 5 | G31: 80 | H31: 400
A32: AD切配区
A33: AD01 | B33: 风幕机 | C33: L=1200MM | D33: 说明： 风幕机提供一道有效、强力的空气门,既可以挂在墙上，也可悬挂在房间天花板上,附设导风板可以容易地调整送风的方向,开关设于机体上，可提供高、低两种风速，安装于任何场合均能保持与周围环境的协调. | E33: 台 | F33: 1 | G33: 360 | H33: 360
A34: AD02 | B34: 热风循环刀具砧板组合消毒柜 | C34: 1225*580*1525 | D34: 容积：600L 功率：1250W 电压：220V/50HZ 装载数量：20把刀+8块砧板 不锈钢柜门加钢化玻璃透窗,全无磁不锈钢箱体,臭氧+紫外线+隐藏式发热，中温热风循环多功能刀具砧板组合消毒柜。 | E34: 台 | F34: 1 | G34: 3600 | H34: 3600 | J34: 厂制品
A35: AD03 | B35: 四层沥水货架 | C35: 1200*500*300 | D35: 说明：采用优质304不锈钢管制作 1、立柱采用1.0mm38*38、304不锈钢方管； 2、横档采用1.0mm38*38、中间38*25方管、304不锈钢方管； 3、调节脚采用全金属外包不锈钢可调式子弹脚； 4、为格栅式结构。 | E35: 台 | F35: 2 | G35: 600 | H35: 1200 | J35: 厂制品
A36: AD04 | B36: 四门冰箱 | C36: 1200*710*1980 | D36: 容量：900L 制冷方式：直冷 温度范围：保鲜-5℃～+5℃冷冻0℃～-15℃。 1、板材内箱优质无磁不锈钢板；加厚型发泡层，提高保温性能，超大空间，冷却速度快，更节能； 2、釆用独立机组双压缩机双冷凝器双冷凝风机可整体抽出机组拆卸更换，到场即可修复，无需现场检修 | E36: 台 | F36: 3 | G36: 3900 | H36: 11700
A37: AD05 | B37: 粘捕式灭蝇灯 | C37: 355*105*235 | D37: 1.电压：220V 2.功率:10W 3.用胶：粘性持久，不易干胶，安全环保。苍蝇背景图案：根据苍蝇聚集采食习惯设计, 增加飞虫诱捕效果 4.电子式镇流器：故障率低，寿命长，节能，具电压保护功能 5.U型卡槽设计：使特殊波长灯管光频 直射到粘蝇板的 各点距离均等，加强对飞虫的吸引力和诱捕效果 | E37: 台 | F37: 1 | G37: 50 | H37: 50
A38: AD06 | B38: 全自动多功能切菜机 | C38: 1160*560*1280 | D38: 功率：3KW 生产量：300-800KG/H 厚片、薄片、切四角丝、切圆丝、切条、切角块、切斜片、切段均可调。 | E38: 台 | F38: 1 | G38: 3800 | H38: 3800
A39: AD07 | B39: 开水器带底座 | C39: 12KW | D39: 电源种类：50HZ/380V 功率：12KW 整体采用优质不锈钢制造，外形设计美观大方，结构紧凑，采用名厂电器原件，特设缺水，防干烧功能，全自动进水，控水，自动控温空能，省时省电. | E39: 台 | F39: 1 | G39: 950 | H39: 950 | J39: 厂制品
A40: AD08 | B40: 挂墙双层架 | C40: 6100*350*680 | D40: 说明：采用优质304不锈钢板制作 台面：δ1.0mm、304不锈钢板 | E40: 米 | F40: 6.1 | G40: 500 | H40: 3050 | J40: 厂制品
A41: AD09 | B41: 单星盆水池柜 | C41: 700*800*800+150 | D41: 说明：采用优质304不锈钢板制作 1、台面采用δ1.0mm、304不锈钢板； 2、星盆斗采用δ1.0mm、304不锈钢机冲； 3、脚管采用1.0mmφ38、304不锈钢圆管； 4、横档采用1.0mmφ25、304不锈钢圆管； 5、调节脚采用全金属外包不锈钢子弹脚； 6、单星盆，配星盆去水槽，隔渣网。 | E41: 台 | F41: 1 | G41: 1200 | H41: 1200 | J41: 厂制品
A42: AD10 | B42: 双门平台雪柜 | C42: 1800*800*950 | D42: 电压：220V功率：0.20kw容量：450L；制冷方式：直冷 温度范围：保鲜-5℃～+5℃ 1、板材内箱优质无磁不锈钢板，前面板优质无磁不锈钢板，门面板优质无磁不锈钢板，外侧板优质无磁不锈钢板；加厚型发泡层，提高保温性能，超大空间，冷却速度快，更节能； | E42: 台 | F42: 3 | G42: 3200 | H42: 9600
A43: AD11 | B43: 高压洗地枪 | C43: 10米 | D43: 说明：软管长度：10米 开发式 流量：5.37升/分钟 喉管自动回卷装置(棘轮系统，防锁死，棘轮保持放松) 软管，可承受120°C的高温以及300PSI高压 可安装于墙壁、天花板或台柜下； 配置喉管止动器，可调节； | E43: 台 | F43: 2 | G43: 1200 | H43: 2400
A44: AE主厨房
A45: AE01 | B45: 油烟净化一体机 | C45: L*1200*995 | D45: 1.国标不锈钢材质，坚实耐用，美观抗油污 2.烟罩净化一体化，节省厨房空间 3.双层除油分离技术，高效回收废油，纳米涂层，易清洗 4.高密度304材质钢丝拦截网，高吸附，均衡整流 5.高低压静电电场，油烟吸附率高达95%以上 6.高转速大风量低噪音风机，更稳定，更安静 7.可变口风口设计，安装无烦恼，适用更广 8.管道无积油，免清洗，维护成本低，更安全 9.一键启动，无需专业人士操作，更直观，更简便 | E45: 米 | F45: 14.2 | G45: 4500 | H45: 63900 | J45: 厂制品
A46: AE02 | B46: 电磁双头矮汤炉 | C46: 1400*700*1200 | D46: 锅(mm)：微晶板 功率：15Kw*2 电压：380V/50Hz 产品特点 · 全新防水、防油烟、防虫设计 · 优质304不锈钢外壳 · 优质密封胶，严防渗水 · 耐600度高温，抗冲击，高强度微晶玻璃 · 智能显示和自动报警装置 · 18重安全保护设置，防止意外事故发生 · 软启动技术，延长设备使用寿命 · 智能化数字机芯，优质元件 ，工作稳定可靠 · 定时功能，方便省心 | E46: 台 | F46: 1 | G46: 11000 | H46: 11000 | J46: 厂制品
A47: AE03 | B47: 双通工作台 | C47: 1800*800*850 | D47: 说明：采用优质304不锈钢板制作 台面:δ1.0mm、304不锈钢板 侧板:δ1.0mm、304不锈钢板 层板:δ1.0mm、304不锈钢板 门板:δ1.0mm、304不锈钢板，双向移门 台脚通:δ1.0mm*60重力脚 衬板:δ15mm夹心板 支撑梁:不锈钢制作 | E47: 台 | F47: 4 | G47: 2500 | H47: 10000 | J47: 厂制品
A48: AE04 | B48: 双通暖碟柜 | C48: 1800*800*800 | D48: 说明：采用优质304不锈钢板制作 台面:δ1.0mm、304不锈钢板 侧板:δ1.0mm、304不锈钢板 层板:δ1.0mm、304不锈钢板 门板:δ1.0mm、304不锈钢板 台脚通:δ1.0mm*60重力脚 衬板:δ15mm夹心板 支撑梁:不锈钢制作 配发热管及热风系统，温控器一套，自动控温。 | E48: 台 | F48: 1 | G48: 2800 | H48: 2800 | J48: 厂制品
A49: AE05 | B49: 双门蒸饭柜 | C49: 24盘 | D49: 说明：采用优质304不锈钢板制作 采用耐高温聚胺酯整体发泡 一次性压成型的不锈钢层架 全自动浮球进水功能,缺水自给,满水自停,安全卸气阀 内部采用国际钢板1.0mm,∠30×2国际角钢，全自动进水，电量：12KW*2/3PH/380V。 | E49: 台 | F49: 1 | G49: 2600 | H49: 2600 | J49: 厂制品
A50: AE06 | B50: 炉拼台 | C50: 400*1100*800+400 | D50: 说明：采用优质304不锈钢板制作 台面：δ1.0mm、304不锈钢板 前板,背板：δ1.0mm、304不锈钢板 和炉灶配合安装 | E50: 台 | F50: 2 | G50: 800 | H50: 1600 | J50: 厂制品
A51: AE07 | B51: 燃气双头双尾小炒灶 | C51: 2000*1200*800+400 | D51: 说明：采用优质304不锈钢板制作 台面：δ1.0mm、304不锈钢板 围板：δ1.0mm、304不锈钢板 炉头采用节能气体燃烧机 具有电子点火,熄火保护控制模块. 风机开关设有延时防空烧组合配置 高强耐火铸铁一次成型节能炉体 燃料：天然气 风机：中压风机 炉脚：ф50㎜镀锌管及调节螺丝组成 隔热层： 采用硅酸盐保温材料隔热 | E51: 台 | F51: 1 | G51: 10000 | H51: 10000 | J51: 厂制品
A52: AE08 | B52: 电磁双头大炒炉 | C52: 2000*1200*800 | D52: 锅(mm)：Φ800 功率：20Kw*2 电压：380V/50Hz 产品特点: 1、全新防水、防油烟、防虫设计 2、优质304不锈钢外壳 3、配炒菜灶不锈钢锅及炒菜灶水龙头 4、优质密封胶，严防渗水 5、前置水阀，方便耐用 6、八段火力细分调节，确保温度均匀和食品美味 7、智能显示和自动报警装置 8、18重安全保护设置，防止意外事故发生 9、软启动技术，延长设备使用寿命 10、智能化数字机芯，优质元件 ，工作稳定可靠 | E52: 台 | F52: 1 | G52: 14500 | H52: 14500 | J52: 厂制品
A53: AE09 | B53: 燃气单头大锅灶 | C53: 1000*1200*800+400 | D53: 说明：采用优质304不锈钢板制作 台面：δ1.0mm、304不锈钢板 围板：δ1.0mm、304不锈钢板 炉头采用节能气体燃烧机 具有电子点火,熄火保护控制模块. 风机开关设有延时防空烧组合配置 高强耐火铸铁一次成型节能炉体 燃料：天然气 风机：中压风机 炉脚：ф50㎜镀锌管及调节螺丝组成 隔热层： 采用硅酸盐保温材料隔热 | E53: 台 | F53: 1 | G53: 8000 | H53: 8000 | J53: 厂制品
A54: AE10 | B54: 炉拼台 | C54: 860*350*800+400 | D54: 说明：采用优质304不锈钢板制作 台面：δ1.0mm、304不锈钢板 前板,背板：δ1.0mm、304不锈钢板 和炉灶配合安装 | E54: 台 | F54: 1 | G54: 800 | H54: 800 | J54: 厂制品
A55: AE11 | B55: 电磁三门蒸箱 | C55: 1000*900*1850 | D55: 功率：25KW 电压：380V/50Hz 产品特点 · 全新防水、防油烟、防虫设计 · 优质304不锈钢外壳 · 优质密封胶，严防渗水 · 智能显示和自动报警装置 · 18重安全保护设置，防止意外事故发生 · 软启动技术，延长设备使用寿命 · 智能化数字机芯，优质元件 ，工作稳定可靠 · 定时功能，方便省心 | E55: 台 | F55: 1 | G55: 16000 | H55: 16000 | J55: 厂制品
A56: AE12 | B56: 炉拼台 | C56: 600*530*800+400 | D56: 说明：采用优质304不锈钢板制作 台面：δ1.0mm、304不锈钢板 前板,背板：δ1.0mm、304不锈钢板 和炉灶配合安装 | E56: 台 | F56: 1 | G56: 800 | H56: 800 | J56: 厂制品
A57: AE13 | B57: 厨房灭火系统 | C57: 双瓶组 | D57: 1、装置具备自动和手动两种操作模式，并能给出报警信号： 2、装置需在启动灭火的同时启动机械阀 3、装置需与消防水（或者自来水）管路相连，系统启动后自控水阀等灭火剂喷洒完全后，再自动喷水： 4、系统装置包括：控制箱（机械式）、管路、喷嘴、探测器、易熔连接片、金属拉索、滑轮三通、滑轮弯头等组成。其中控制箱由自动释放机构，驱动用高压氮气瓶、水流控制阀、液体药剂罐以及连接软管、单向阀、减压阀等构成;5、性能参数：a工作温度：4-55℃。b最高工作压力13Mpa、c单个喷嘴最大喷洒数率：0.22L/s、d灭火剂保持期：8年。E药剂喷洒时间：11秒。F灭火时间：3-5秒。 6、安装规范： a水压≥0.25Mpa、b下喷喷嘴需采取连接布置、间距600-650mm、角度正对所保护区域的中心位置 | E57: 台 | F57: 1 | G57: 8500 | H57: 8500
A58: AE14 | B58: 电力12盘蒸饭车 | C58: 710*620*1540 | D58: 说明：采用优质304不锈钢板制作 采用耐高温聚胺酯整体发泡 一次性压成型的不锈钢层架 全自动浮球进水功能,缺水自给,满水自停,安全卸气阀 内部采用国际钢板1.0mm,∠30×2国际角钢，全自动进水，电量：12KW/3PH/380V。 | E58: 台 | F58: 1 | G58: 2500 | H58: 2500 | J58: 厂制品
A59: AF面点间
A60: AF01 | B60: 挂墙双层架 | C60: 1595*350*230 | D60: 说明：采用优质304不锈钢板制作 台面：δ1.0mm、304不锈钢板 | E60: 米 | F60: 1.59 | G60: 500 | H60: 795 | J60: 厂制品
A61: AF02 | B61: 油烟净化一体机 | C61: L*1200*995 | D61: 1.国标不锈钢材质，坚实耐用，美观抗油污 2.烟罩净化一体化，节省厨房空间 3.双层除油分离技术，高效回收废油，纳米涂层，易清洗 4.高密度304材质钢丝拦截网，高吸附，均衡整流 5.高低压静电电场，油烟吸附率高达95%以上 6.高转速大风量低噪音风机，更稳定，更安静 7.可变口风口设计，安装无烦恼，适用更广 8.管道无积油，免清洗，维护成本低，更安全 9.一键启动，无需专业人士操作，更直观，更简便 | E61: 米 | F61: 3.6 | G61: 4500 | H61: 16200 | J61: 厂制品
A62: AF03 | B62: 净水器 | C62: 429*163*430mm | D62: 1.直饮 2.工作原理：反渗透 3.滤芯：PPC+RO | E62: 台 | F62: 1 | G62: 950 | H62: 950
A63: AF04 | B63: 豆浆机 | C63: 628*519*1174 | D63: 1、生产容易：30-45升 2、功能按键：豆浆、营养米糊、果蔬糜粥、绿豆沙、玉米糊、自动脱浆 3、预约烧水、复位 4、制作时间：冷水：55-70min /开水：30-33min | E63: 台 | F63: 1 | G63: 2800 | H63: 2800
A64: AF05 | B64: 单通移门荷台柜 | C64: 800*700*800 | D64: 说明：采用优质304不锈钢板制作 台面:δ1.0mm、304不锈钢板 侧板:δ1.0mm、304不锈钢板 层板:δ1.0mm、304不锈钢板 门板:δ1.0mm、304不锈钢板，单向移门 台脚通:δ1.0mm*60重力脚 衬板:δ15mm夹心板 支撑梁:不锈钢制作 | E64: 台 | F64: 1 | G64: 2000 | H64: 2000 | J64: 厂制品
A65: AF06 | B65: 双缸双筛电炸炉连柜座 | C65: 700*700*（850+60） | D65: 功率：24KW/380V 1、采用面304，厚度2.0不锈钢板，余板及其他为201，厚度1.0。表面美观，易清洗，表面没有焊接打磨痕迹。 2、采用温控器调节温度，用以控制电热管的发热温度，从而保证油温。 3、仅需9.5分钟就能将油加热到195℃。 4、带限温装置，超温保护功能，手动复位，安全可靠。 5、内设置隔热板，提高热效率，防止外部过热。 6、使用过程中，禁止手触摸电热管和油，以免造成烫伤。 | E65: 台 | F65: 1 | G65: 7500 | H65: 7500
A66: AF07 | B66: 不锈钢单门发酵箱 | C66: 13盘 | D66: 层数：13盘 功率：2400W/220V 箱体采用全无磁不锈钢材料,发泡不锈钢柜门加全钢化玻璃透窗。箱内热风循环技术,使箱内的温度环境更均匀,温度和湿度调节更精准。设有自动进水,全不锈钢管层架可自由调节发酵空间。 | E66: 台 | F66: 1 | G66: 2600 | H66: 2600
A67: AF08 | B67: 四门冰箱 | C67: 1200*710*1980 | D67: 容量：900L 制冷方式：直冷 温度范围：保鲜-5℃～+5℃冷冻0℃～-15℃。 1、板材内箱优质无磁不锈钢板；加厚型发泡层，提高保温性能，超大空间，冷却速度快，更节能； 2、釆用独立机组双压缩机双冷凝器双冷凝风机可整体抽出机组拆卸更换，到场即可修复，无需现场检修 | E67: 台 | F67: 1 | G67: 3900 | H67: 3900
A68: AF09 | B68: 电饼铛 | C68: 600*735*760 | D68: 额定电压：220V/380V 额定功率：4.5KW | E68: 台 | F68: 1 | G68: 950 | H68: 950
A69: AF10 | B69: 烤箱 | C69: 三层 | D69: 三层六盘 功率：19.8KW/380V 正面全无磁不锈钢材料，不锈钢门板配备双层耐高温钢化玻璃可视窗，远红外线电热管辐射加热，高密度保温棉使热力分布更均匀，中途无需转盘；数码显示温控仪表，上下层单独控温；蜂鸣报警装置。 | E69: 台 | F69: 1 | G69: 5600 | H69: 5600
A70: AF11 | B70: 挂墙双层架 | C70: 3002*350*680 | D70: 说明：采用优质304不锈钢板制作 台面：δ1.0mm、304不锈钢板 | E70: 米 | F70: 3 | G70: 500 | H70: 1500 | J70: 厂制品
A71: AF12 | B71: 挂墙工具架02 | C71: 1500*250*450 | D71: 说明：采用优质304不锈钢板制作 台面：δ1.0mm、304不锈钢板 | E71: 台 | F71: 1 | G71: 450 | H71: 450 | J71: 厂制品
A72: AF13 | B72: 大单星盆水池 | C72: 1200*800*800+150 | D72: 说明：采用优质304不锈钢板制作 1、台面采用δ1.0mm、304不锈钢板； 2、星盆斗采用δ1.0mm、304不锈钢机冲； 3、脚管采用1.0mmφ38、304不锈钢圆管； 4、横档采用1.0mmφ25、304不锈钢圆管； 5、调节脚采用全金属外包不锈钢子弹脚； 6、大单星盆，配星盆去水槽，隔渣网。 | E72: 台 | F72: 1 | G72: 950 | H72: =ROUND(F72*G72,0) -> 950 | J72: 厂制品
A73: AF14 | B73: 双温水龙头 | C73: 双温 | D73: 说明：采用不锈钢制作 | E73: 台 | F73: 1 | G73: 80 | H73: 80
A74: AF15 | B74: 搅拌机 | C74: 30L | D74: 软启动、低噪音、适应性更强；按钮控制更加得心应手，还在按钮上增加了信号指示灯，大大提高了使用安全性 | E74: 台 | F74: 1 | G74: 2800 | H74: 2800
A75: AF16 | B75: 双动双速和面机 | C75: 800*440*900 | D75: 功率：2.2KW 生产量：12KG 1.变频器替代了机械齿轮换速，减少故障率。 2.超低噪音。 3.造型新颖美观。 | E75: 台 | F75: 1 | G75: 5000 | H75: 5000
A76: AF17 | B76: 饼盘车 | C76: 500*700*1500 | D76: 说明：采用优质304不锈钢板制作 脚：1.0mm、304不锈钢管 支架：38*25*1.0mm、304不锈钢方管层架：25*13、304板 | E76: 台 | F76: 1 | G76: 1200 | H76: 1200 | J76: 厂制品
A77: AF18 | B77: 压面机 | C77: 600*430*860 | D77: 功率：1.5KW 生产量：100KG/H 不锈钢材质，软启动、低噪音、适应性更强；采用可折叠的进面盘、接面盘，密闭性好，更加干净卫生 | E77: 台 | F77: 1 | G77: 2600 | H77: 2600
A78: AF19 | B78: 木案工作台 | C78: 1800*800*800 | D78: 说明： 1、台面采用木案板厚45mm，木质：松木； 2、腿管采用ф51mm、304不锈钢圆管制作，壁厚1.0mm； 3、调节脚采用全金属外包不锈钢子弹脚。 | E78: 台 | F78: 1 | G78: 950 | H78: 950 | J78: 厂制品
A79: AF20 | B79: 面粉车 | C79: 500*500*500 | D79: 说明：采用优质304不锈钢板制作 1、车身采用δ1.0mm、304不锈钢板； 2、车盖采用δ1.0mm、304不锈钢板； 3、不锈钢排铰连接；两边对开揿门； 4、配4只防滑、耐磨万向轮优质胶轮，2只带刹车製。 | E79: 台 | F79: 2 | G79: 950 | H79: 1900 | J79: 厂制品
A80: AF21 | B80: 粘捕式灭蝇灯 | C80: 355*105*235 | D80: 1.电压：220V 2.功率:10W 3.用胶：粘性持久，不易干胶，安全环保。苍蝇背景图案：根据苍蝇聚集采食习惯设计, 增加飞虫诱捕效果 4.电子式镇流器：故障率低，寿命长，节能，具电压保护功能 5.U型卡槽设计：使特殊波长灯管光频 直射到粘蝇板的 各点距离均等，加强对飞虫的吸引力和诱捕效果 | E80: 台 | F80: 1 | G80: 50 | H80: 50
A81: AG凉菜间
A82: AG02 | B82: 挂墙双层架 | C82: 3610*350*680 | D82: 说明：采用优质304不锈钢板制作 台面：δ1.0mm、304不锈钢板 | E82: 米 | F82: 3.6 | G82: 500 | H82: 1800 | J82: 厂制品
A83: AH售买间
A84: AH02 | B84: 干手器 | C84: 240*240*230 | D84: 功率：2KW 风速：大于18M/S 干手时间：12S 防水等 级：IPX1 规格：冷热型 | E84: 台 | F84: 1 | G84: 80 | H84: 80
A85: AH03 | B85: 洗手星 | C85: 400*300*450 | D85: 说明：采用优质304不锈钢板制作 1、台面采用δ1.0mm、304不锈钢板； 2、星盆斗采用δ1.0mm、304不锈钢机冲。 | E85: 台 | F85: 1 | G85: 750 | H85: 750 | J85: 厂制品
A86: AH04 | B86: 粘捕式灭蝇灯 | C86: 355*105*235 | D86: 1.电压：220V 2.功率:10W 3.用胶：粘性持久，不易干胶，安全环保。苍蝇背景图案：根据苍蝇聚集采食习惯设计, 增加飞虫诱捕效果 4.电子式镇流器：故障率低，寿命长，节能，具电压保护功能 5.U型卡槽设计：使特殊波长灯管光频 直射到粘蝇板的 各点距离均等，加强对飞虫的吸引力和诱捕效果 | E86: 台 | F86: 2 | G86: 50 | H86: 100
A87: AH05 | B87: 单通移门荷台柜 | C87: 600*700*800 | D87: 说明：采用优质304不锈钢板制作 台面:δ1.0mm、304不锈钢板 侧板:δ1.0mm、304不锈钢板 层板:δ1.0mm、304不锈钢板 门板:δ1.0mm、304不锈钢板，单向移门 台脚通:δ1.0mm*60重力脚 衬板:δ15mm夹心板 支撑梁:不锈钢制作 | E87: 台 | F87: 1 | G87: 2000 | H87: 2000 | J87: 厂制品
A88: AH08 | B88: 单通移门荷台柜 | C88: 1440*670*800 | D88: 说明：采用优质304不锈钢板制作 台面:δ1.0mm、304不锈钢板 侧板:δ1.0mm、304不锈钢板 层板:δ1.0mm、304不锈钢板 门板:δ1.0mm、304不锈钢板，单向移门 台脚通:δ1.0mm*60重力脚 衬板:δ15mm夹心板 支撑梁:不锈钢制作 | E88: 台 | F88: 3 | G88: 2500 | H88: 7500 | J88: 厂制品
A89: AH09 | B89: 五格售饭柜 | C89: 1800*700*800 | D89: 说明：采用优质304不锈钢板制作 1、台面采用δ1.0mm不锈钢板； 2、水箱、围板用δ1.0mm不锈钢板； 3、腿管采用1.0mm*38*38不锈钢方管； 4、调节脚采用全金属外包不锈钢子弹脚； 5、配不锈钢电热管，自动电控恒温式保温方式； 6、水热式。配缺水断电保护装置 电量：3KW/1PH/220V | E89: 台 | F89: 3 | G89: 2800 | H89: 8400 | J89: 厂制品
A90: AH11 | B90: 双层平板工作台带靠背 | C90: 1500*700*800+150 | D90: 说明：采用优质304不锈钢板制作 台面:δ1.0mm、304不锈钢板 层板:δ1.0mm、304不锈钢方板 立柱:δ1.0mm*直径51、304不锈钢圆管 台脚通:ф51不锈钢连子弹脚 支撑梁:不锈钢制作 | E90: 台 | F90: 1 | G90: 1200 | H90: 1200 | J90: 厂制品
A91: AH12 | B91: 单星水池 | C91: 700*700*800+150 | D91: 说明：采用优质304不锈钢板制作 1、台面采用δ1.0mm、304不锈钢板； 2、星盆斗采用δ1.0mm、304不锈钢机冲； 3、脚管采用1.0mmφ38、304不锈钢圆管； 4、横档采用1.0mmφ25、304不锈钢圆管； 5、调节脚采用全金属外包不锈钢子弹脚； 6、单星盆，配星盆去水槽，隔渣网。 | E91: 台 | F91: 1 | G91: 850 | H91: 850 | J91: 厂制品
A92: * | B92: 水龙头 | C92: 双温 | D92: 说明：采用不锈钢制作 | E92: 台 | F92: 1 | G92: 80 | H92: 80
A93: AH13 | B93: 双门留样柜 | C93: 1200*580*1970 | D93: 制冷方式：直冷 电压：220V 防触电保护类型：I类 | E93: 台 | F93: 1 | G93: 2600 | H93: 2600
A94: AH14 | B94: 紫外线消毒灯 | C94: L=1200MM | D94: 说明：额定电压：103（V） 额定功率：TUV36W 紫外线杀菌灯长度1200MM | E94: 台 | F94: 3 | G94: 180 | H94: 540
A95: AH16 | B95: 热汤池柜 | C95: 600*700*800 | D95: 说明：采用优质304不锈钢板制作 1、台面采用δ1.0mm不锈钢板； 2、水箱、围板用δ1.0mm不锈钢板； 3、腿管采用1.0mm*38*38不锈钢方管； 4、调节脚采用全金属外包不锈钢子弹脚； 5、配不锈钢电热管，自动电控恒温式保温方式； 6、水热式。配缺水断电保护装置 电量：3KW/1PH/220V | E95: 台 | F95: 1 | G95: 1200 | H95: 1200 | J95: 厂制品
A96: AH17 | B96: 煮面连汤炉（圆孔） | C96: 1200*700*800 | D96: 说明：采用优质304不锈钢板制作 台面:δ1.0mm、304不锈钢板 层板:δ1.0mm、304不锈钢方板 | E96: 台 | F96: 1 | G96: 2600 | H96: 2600 | J96: 厂制品
A97: AH18 | B97: 暖饭车 | C97: 700*700*800 | D97: 说明：采用优质304不锈钢板制作 台面：δ1.0mm不锈钢板 围板：δ1.0mm不锈钢板 电压：220V 功率：2KW； 底轮：2只万向轮，带刹车，2只定向轮。 电加热：恒温控制； | E97: 台 | F97: 4 | G97: 1200 | H97: 4800 | J97: 厂制品
A98: AH19 | B98: 单通移门荷台柜 | C98: 1800*700*800 | D98: 说明：采用优质304不锈钢板制作 台面:δ1.0mm、304不锈钢板 侧板:δ1.0mm、304不锈钢板 层板:δ1.0mm、304不锈钢板 门板:δ1.0mm、304不锈钢板，单向移门 台脚通:δ1.0mm*60重力脚 衬板:δ15mm夹心板 支撑梁:不锈钢制作 | E98: 台 | F98: 1 | G98: 2500 | H98: 2500 | J98: 厂制品
A99: AH20 | B99: 筷子消毒车 | C99: 760*450*800 | D99: 说明：采用优质304不锈钢板制作 设双向导热风管道并保温装置。独立不锈钢电源控制箱原配件，自动温控，自动开/关机，热风循环式消毒、烘干。温度适中、调节方便。 | E99: 台 | F99: 1 | G99: 950 | H99: 950 | J99: 厂制品
A100: AH21 | B100: 双孔污碟台柜连车 | C100: 1500*700*800 | D100: 说明：采用优质304不锈钢板制作 1、台面:δ1.0mm，304不锈钢板 2、横管:1.0mm*25*25圆管，304不锈钢 3、立柱:1.0mm*51mm不锈钢管 4、台脚通:δ1.0mm*直径43mm不锈钢连子弹脚 5、支撑梁:不锈钢制作 | E100: 台 | F100: 1 | G100: 3000 | H100: 3000 | J100: 厂制品
A101: AH22 | B101: 油烟净化一体机 | C101: L*1200*995 | D101: 1.国标不锈钢材质，坚实耐用，美观抗油污 2.烟罩净化一体化，节省厨房空间 3.双层除油分离技术，高效回收废油，纳米涂层，易清洗 4.高密度304材质钢丝拦截网，高吸附，均衡整流 5.高低压静电电场，油烟吸附率高达95%以上 6.高转速大风量低噪音风机，更稳定，更安静 7.可变口风口设计，安装无烦恼，适用更广 8.管道无积油，免清洗，维护成本低，更安全 9.一键启动，无需专业人士操作，更直观，更简便 | E101: 米 | F101: 1.8 | G101: 4500 | H101: 8100 | J101: 厂制品
A102: AI洗碗间
A103: AI01 | B103: 双星污碟台（左收残） | C103: 2300*800*800+150 | D103: 说明：采用优质304不锈钢板制作 1、台面采用δ1.0mm、304不锈钢板； 2、星盆斗采用δ1.0mm、304不锈钢机冲； 3、脚管采用1.0mmφ38、304不锈钢圆管； 4、横档采用1.0mmφ25、304不锈钢圆管； 5、调节脚采用全金属外包不锈钢子弹脚； 6、双星盆、配星盆去水槽，隔渣网。 | E103: 台 | F103: 1 | G103: 1800 | H103: 1800 | J103: 厂制品
A104: AI01-2 | B104: 水龙头 | C104: 双温 | D104: 说明：采用不锈钢制作 | E104: 台 | F104: 2 | G104: 80 | H104: 160
A105: AI01-1 | B105: 高压花洒龙头 | C105: JXD-5805A | D105: 1.铜螺杆阀芯，一字手柄 2.开单孔22mm安装 3.不锈钢软管配大流量喷阀，耐热手柄 4.纯黄铜底座 | E105: 台 | F105: 1 | G105: 650 | H105: 650
A106: AI02 | B106: 高压花洒龙头 | C106: JXD-5805A | D106: 1.铜螺杆阀芯，一字手柄 2.开单孔22mm安装 3.不锈钢软管配大流量喷阀，耐热手柄 4.纯黄铜底座 | E106: 台 | F106: 1 | G106: 650 | H106: 650
A107: AI03 | B107: 电热水器 | C107: 60L | D107: 1.密闭型储水式电热水器 2.款式: 横式 3.能效等级: 一级 | E107: 台 | F107: 1 | G107: 1000 | H107: 1000
A108: AI04 | B108: 三星水池 | C108: 1800*700*800+150 | D108: 说明：采用优质304不锈钢板制作 1、台面采用δ1.0mm、304不锈钢板； 2、星盆斗采用δ1.0mm、304不锈钢机冲； 3、脚管采用1.0mmφ38、304不锈钢圆管； 4、横档采用1.0mmφ25、304不锈钢圆管； 5、调节脚采用全金属外包不锈钢子弹脚； 6、三星盆、配星盆去水槽，隔渣网。 | E108: 台 | F108: 1 | G108: 1500 | H108: 1500 | J108: 厂制品
A109: * | B109: 双温水龙头 | C109: 双温 | D109: 说明：采用不锈钢制作 | E109: 台 | F109: 3 | G109: 80 | H109: 240
A110: AI05 | B110: 四层栅格层架 | C110: 1200*500*1500 | D110: 说明：采用优质304不锈钢管制作 1、立柱采用1.0mm38*38、304不锈钢方管； 2、横档采用1.0mm38*25、中间25方管、304不锈钢方管； 3、调节脚采用全金属外包不锈钢可调式子弹脚； 4、每层为格栅式结构，四层。 | E110: 台 | F110: 1 | G110: 1200 | H110: 1200 | J110: 厂制品
A111: AI07 | B111: 双门不锈钢门消毒柜 | C111: 1100*500*1800 | D111: 容积：800L 功率：3500W 电压：220V/50HZ 整体发泡,无指纹全无磁不锈钢箱体,加深加粗全无磁消毒柜篮筐,指弹头柜脚,热风循环高温消毒。双门采用双旋钮控制，可单室独立工作也可双室同时工作。 | E111: 台 | F111: 2 | G111: 3600 | H111: 7200 | J111: 厂制品
A112: AI08 | B112: 双孔污碟台柜连车 | C112: 1500*700*800 | D112: 说明：采用优质304不锈钢板制作 1、台面:δ1.0mm，304不锈钢板 2、横管:1.0mm*25*25圆管，304不锈钢 3、立柱:1.0mm*51mm不锈钢管 4、台脚通:δ1.0mm*直径43mm不锈钢连子弹脚 5、支撑梁:不锈钢制作 | E112: 台 | F112: 1 | G112: 3000 | H112: 3000 | J112: 厂制品
A113: AI09 | B113: 紫外线消毒灯 | C113: L=1200MM | D113: 说明：额定电压：103（V） 额定功率：TUV36W 紫外线杀菌灯长度1200MM | E113: 台 | F113: 2 | G113: 180 | H113: 360
A114: AI10 | B114: 粘捕式灭蝇灯 | C114: 355*105*235 | D114: 1.电压：220V 2.功率:10W 3.用胶：粘性持久，不易干胶，安全环保。苍蝇背景图案：根据苍蝇聚集采食习惯设计, 增加飞虫诱捕效果 4.电子式镇流器：故障率低，寿命长，节能，具电压保护功能 5.U型卡槽设计：使特殊波长灯管光频 直射到粘蝇板的 各点距离均等，加强对飞虫的吸引力和诱捕效果 | E114: 台 | F114: 1 | G114: 50 | H114: 50
A115: AI11 | B115: 洁碟台A | C115: 1500*800*800+150 | D115: 说明：采用优质304不锈钢板制作 台面:δ1.0mm、304不锈钢板 层板:δ1.0mm、304不锈钢方板 立柱:δ1.0mm*直径51、304不锈钢圆管 台脚通:ф51不锈钢连子弹脚 支撑梁:不锈钢制作 15mm夹心板 | E115: 台 | F115: 1 | G115: 1200 | H115: 1200 | J115: 厂制品
A116: AI12 | B116: 平放式洗碗机 | C116: 1600*900*1450 | D116: 功率：47KW/380V 最大洗涤量：800套/小时 ●采用国标 304 不锈钢材质，坚实耐用，符合食品接触安全要求 ●主洗温度 60-70℃，漂洗温度 82-95℃，消毒更彻底 ●食品级传动平齿链带材质，耐高温，抗老化，更卫生 ●一键启动，无需专业人士操作，更直观，更简便 ●不锈钢喷淋臂，内凹式清洗孔设计，防堵塞，清洗无死角 ●主洗采用上四下三组喷淋臂，更强劲，抽拉式可拆卸，易清洗 ●电机扭矩保护系统，防止餐具滑落损坏设备 ●餐具出口防卡装置，多重保护感应系统，保障设备无故障运行 ●控制箱采用机电控制系统，耐环境，耐使用，寿命长，维修方便，维修成本低 ●平放式洗碗机带压链设计，适合各种异型餐具清洗 | E116: 台 | F116: 1 | G116: 27000 | H116: 27000
A117: AI14 | B117: 不锈钢油网烟罩 | C117: 1800*1100*500 | D117: 说明：采用优质304不锈钢板制作 厚度：δ1.0mm、304不锈钢板 | E117: 米 | F117: 1.8 | G117: 950 | H117: 1710 | J117: 厂制品
A118: AI13 | B118: 拖把池 | C118: 1200*500*1705 | D118: 说明：采用优质304不锈钢板制作 1、台面采用δ1.0mm、304不锈钢板； 2、星盆斗采用δ1.0mm、304不锈钢机冲； 3、脚管采用1.0mmφ38、304不锈钢圆管； 4、横档采用1.0mmφ25、304不锈钢圆管； 5、调节脚采用全金属外包不锈钢子弹脚； 6、单星盆，配星盆去水槽，隔渣网。 | E118: 台 | F118: 1 | G118: 950 | H118: 950 | J118: 厂制品
A119: BA售买间
A120: BA03 | B120: 五格售饭柜 | C120: 1800*700*800 | D120: 说明：采用优质304不锈钢板制作 1、台面采用δ1.0mm不锈钢板； 2、水箱、围板用δ1.0mm不锈钢板； 3、腿管采用1.0mm*38*38不锈钢方管； 4、调节脚采用全金属外包不锈钢子弹脚； 5、配不锈钢电热管，自动电控恒温式保温方式； 6、水热式。配缺水断电保护装置 电量：3KW/1PH/220V | E120: 台 | F120: 3 | G120: 2800 | H120: 8400 | J120: 厂制品
A121: BA04 | B121: 热汤池柜 | C121: 600*700*800 | D121: 说明：采用优质304不锈钢板制作 1、台面采用δ1.0mm不锈钢板； 2、水箱、围板用δ1.0mm不锈钢板； 3、腿管采用1.0mm*38*38不锈钢方管； 4、调节脚采用全金属外包不锈钢子弹脚； 5、配不锈钢电热管，自动电控恒温式保温方式； 6、水热式。配缺水断电保护装置 电量：3KW/1PH/220V | E121: 台 | F121: 1 | G121: 1200 | H121: 1200 | J121: 厂制品
A122: BA05 | B122: 煮面连汤炉（圆孔） | C122: 1200*700*800 | D122: 说明：采用优质304不锈钢板制作 台面:δ1.0mm、304不锈钢板 层板:δ1.0mm、304不锈钢方板 | E122: 台 | F122: 1 | G122: 2600 | H122: 2600 | J122: 厂制品
A123: BA06 | B123: 暖饭车 | C123: 700*700*800 | D123: 说明：采用优质304不锈钢板制作 台面：δ1.0mm不锈钢板 围板：δ1.0mm不锈钢板 电压：220V 功率：2KW； 底轮：2只万向轮，带刹车，2只定向轮。 电加热：恒温控制； | E123: 台 | F123: 4 | G123: 1200 | H123: 4800 | J123: 厂制品
A124: BA07 | B124: 紫外线消毒灯 | C124: L=1200MM | D124: 说明：额定电压：103（V） 额定功率：TUV36W 紫外线杀菌灯长度1200MM | E124: 台 | F124: 3 | G124: 180 | H124: 540
A125: BA08 | B125: 豆浆机 | C125: 628*519*1174 | D125: 1、生产容易：30-45升 2、功能按键：豆浆、营养米糊、果蔬糜粥、绿豆沙、玉米糊、自动脱浆 3、预约烧水、复位 4、制作时间：冷水：55-70min /开水：30-33min | E125: 台 | F125: 1 | G125: 2600 | H125: 2600
A126: BA09 | B126: 单通移门荷台柜 | C126: 1500*700*800 | D126: 说明：采用优质304不锈钢板制作 台面:δ1.0mm、304不锈钢板 侧板:δ1.0mm、304不锈钢板 层板:δ1.0mm、304不锈钢板 门板:δ1.0mm、304不锈钢板，单向移门 台脚通:δ1.0mm*60重力脚 衬板:δ15mm夹心板 支撑梁:不锈钢制作 | E126: 台 | F126: 2 | G126: 2500 | H126: 5000 | J126: 厂制品
A127: BA10 | B127: 粘捕式灭蝇灯 | C127: 355*105*235 | D127: 1.电压：220V 2.功率:10W 3.用胶：粘性持久，不易干胶，安全环保。苍蝇背景图案：根据苍蝇聚集采食习惯设计, 增加飞虫诱捕效果 4.电子式镇流器：故障率低，寿命长，节能，具电压保护功能 5.U型卡槽设计：使特殊波长灯管光频 直射到粘蝇板的 各点距离均等，加强对飞虫的吸引力和诱捕效果 | E127: 台 | F127: 1 | G127: 50 | H127: 50
A128: BA11 | B128: 双层平板工作台带靠背 | C128: 1200*700*800+100 | D128: 说明：采用优质304不锈钢板制作 台面:δ1.0mm、304不锈钢板 层板:δ1.0mm、304不锈钢方板 立柱:δ1.0mm*直径51、304不锈钢圆管 台脚通:ф51不锈钢连子弹脚 支撑梁:不锈钢制作 | E128: 台 | F128: 1 | G128: 1100 | H128: 1100 | J128: 厂制品
A129: BA12 | B129: 单星水池 | C129: 700*700*800+150 | D129: 说明：采用优质304不锈钢板制作 1、台面采用δ1.0mm、304不锈钢板； 2、星盆斗采用δ1.0mm、304不锈钢机冲； 3、脚管采用1.0mmφ38、304不锈钢圆管； 4、横档采用1.0mmφ25、304不锈钢圆管； 5、调节脚采用全金属外包不锈钢子弹脚； 6、单星盆，配星盆去水槽，隔渣网。 | E129: 台 | F129: 1 | G129: 850 | H129: 850 | J129: 厂制品
A130: * | B130: 水龙头 | C130: 双温 | D130: 说明：采用不锈钢制作 | E130: 台 | F130: 1 | G130: 80 | H130: 80
A131: BA13 | B131: 双门留样柜 | C131: 1200*580*1970 | D131: 制冷方式：直冷 电压：220V 防触电保护类型：I类 | E131: 台 | F131: 1 | G131: 2600 | H131: 2600
A132: BA14 | B132: 单通移门荷台柜 | C132: 1800*700*800 | D132: 说明：采用优质304不锈钢板制作 台面:δ1.0mm、304不锈钢板 侧板:δ1.0mm、304不锈钢板 层板:δ1.0mm、304不锈钢板 门板:δ1.0mm、304不锈钢板，单向移门 台脚通:δ1.0mm*60重力脚 衬板:δ15mm夹心板 支撑梁:不锈钢制作 | E132: 台 | F132: 1 | G132: 2500 | H132: 2500 | J132: 厂制品
A133: BA15 | B133: 筷子消毒车 | C133: 760*450*800 | D133: 说明：采用优质304不锈钢板制作 设双向导热风管道并保温装置。独立不锈钢电源控制箱原配件，自动温控，自动开/关机，热风循环式消毒、烘干。温度适中、调节方便。 | E133: 台 | F133: 1 | G133: 950 | H133: 950 | J133: 厂制品
A134: BA16 | B134: 双孔污碟台柜连车 | C134: 1500*700*800 | D134: 说明：采用优质304不锈钢板制作 1、台面:δ1.0mm，304不锈钢板 2、横管:1.0mm*25*25圆管，304不锈钢 3、立柱:1.0mm*51mm不锈钢管 4、台脚通:δ1.0mm*直径43mm不锈钢连子弹脚 5、支撑梁:不锈钢制作 | E134: 台 | F134: 1 | G134: 1200 | H134: 1200 | J134: 厂制品
A135: BA17 | B135: 净水器 | C135: 429*163*430mm | D135: 1.直饮 2.工作原理：反渗透 3.滤芯：PPC+RO | E135: 台 | F135: 1 | G135: 950 | H135: 950
A136: BA18 | B136: 油烟净化一体机 | C136: L*1200*995 | D136: 1.国标不锈钢材质，坚实耐用，美观抗油污 2.烟罩净化一体化，节省厨房空间 3.双层除油分离技术，高效回收废油，纳米涂层，易清洗 4.高密度304材质钢丝拦截网，高吸附，均衡整流 5.高低压静电电场，油烟吸附率高达95%以上 6.高转速大风量低噪音风机，更稳定，更安静 7.可变口风口设计，安装无烦恼，适用更广 8.管道无积油，免清洗，维护成本低，更安全 9.一键启动，无需专业人士操作，更直观，更简便 | E136: 米 | F136: 1.8 | G136: 4500 | H136: =ROUND(F136*G136,0) -> 8100 | J136: 厂制品
A137: BB洗碗间
A138: BB01-1 | B138: 高压花洒龙头 | C138: JXD-5805A | D138: 1.铜螺杆阀芯，一字手柄 2.开单孔22mm安装 3.不锈钢软管配大流量喷阀，耐热手柄 4.纯黄铜底座 | E138: 台 | F138: 1 | G138: 650 | H138: 650
A139: BB01 | B139: 双星污碟台（左收残） | C139: 2100*800*800+150 | D139: 说明：采用优质304不锈钢板制作 1、台面采用δ1.0mm、304不锈钢板； 2、星盆斗采用δ1.0mm、304不锈钢机冲； 3、脚管采用1.0mmφ38、304不锈钢圆管； 4、横档采用1.0mmφ25、304不锈钢圆管； 5、调节脚采用全金属外包不锈钢子弹脚； 6、双星盆、配星盆去水槽，隔渣网。 | E139: 台 | F139: 1 | G139: 1800 | H139: 1800 | J139: 厂制品
A140: BB01-2 | B140: 双温水龙头 | C140: 双温 | D140: 说明：采用不锈钢制作 | E140: 台 | F140: 1 | G140: 80 | H140: 80
A141: BB02 | B141: 双温高压花洒龙头 | C141: JXD-5805A | D141: 1.铜螺杆阀芯，一字手柄 2.开单孔22mm安装 3.不锈钢软管配大流量喷阀，耐热手柄 4.纯黄铜底座 | E141: 台 | F141: 1 | G141: 650 | H141: 650
A142: BB03 | B142: 双门不锈钢门消毒柜 | C142: 1100*500*1800 | D142: 容积：800L 功率：3500W 电压：220V/50HZ 整体发泡,无指纹全无磁不锈钢箱体,加深加粗全无磁消毒柜篮筐,指弹头柜脚,热风循环高温消毒。双门采用双旋钮控制，可单室独立工作也可双室同时工作。 | E142: 台 | F142: 3 | G142: 3600 | H142: 10800 | J142: 厂制品
A143: BB04 | B143: 热风保温餐车 | C143: 1540*975*1795 | D143: 功率：5.24kw 电压：220-240v 容量：22层 材料：全不锈钢材质，干净卫生，容易清洁。 温度：采用双风机热风循环保温功能，并带有湿度保温功能，可调温控自动恒温功能，带数显温度表，带放水阀装置。[配有网架或可选择食物盆] | E143: 台 | F143: 2 | G143: 6500 | H143: 13000
A144: BB05 | B144: 紫外线消毒灯 | C144: L=1200MM | D144: 说明：额定电压：103（V） 额定功率：TUV36W 紫外线杀菌灯长度1200MM | E144: 台 | F144: 2 | G144: 180 | H144: 360
A145: BB06 | B145: 电热水器 | C145: 60L | D145: 1.密闭型储水式电热水器 2.款式: 横式 3.能效等级: 一级 | E145: 台 | F145: 2 | G145: 1000 | H145: 2000
A146: BB07 | B146: 三星水池 | C146: 1800*700*800+150 | D146: 说明：采用优质304不锈钢板制作 1、台面采用δ1.0mm、304不锈钢板； 2、星盆斗采用δ1.0mm、304不锈钢机冲； 3、脚管采用1.0mmφ38、304不锈钢圆管； 4、横档采用1.0mmφ25、304不锈钢圆管； 5、调节脚采用全金属外包不锈钢子弹脚； 6、三星盆、配星盆去水槽，隔渣网。 | E146: 台 | F146: 1 | G146: 1500 | H146: 1500 | J146: 厂制品
A147: BB08 | B147: 双温水龙头 | C147: 双温 | D147: 说明：采用不锈钢制作 | E147: 台 | F147: 3 | G147: 80 | H147: 240
A148: BB09 | B148: 四层栅格层架 | C148: 1200*500*1500 | D148: 说明：采用优质304不锈钢管制作 1、立柱采用1.0mm38*38、304不锈钢方管； 2、横档采用1.0mm38*25、中间25方管、304不锈钢方管； 3、调节脚采用全金属外包不锈钢可调式子弹脚； 4、每层为格栅式结构，四层。 | E148: 台 | F148: 1 | G148: 1200 | H148: 1200 | J148: 厂制品
A149: BB10 | B149: 双孔污碟台柜连车 | C149: 1500*700*800 | D149: 说明：采用优质304不锈钢板制作 1、台面:δ1.0mm，304不锈钢板 2、横管:1.0mm*25*25圆管，304不锈钢 3、立柱:1.0mm*51mm不锈钢管 4、台脚通:δ1.0mm*直径43mm不锈钢连子弹脚 5、支撑梁:不锈钢制作 | E149: 台 | F149: 1 | G149: 3000 | H149: 3000 | J149: 厂制品
A150: BB11 | B150: 洁碟台A | C150: 1500*800*800+150 | D150: 说明：采用优质304不锈钢板制作 台面:δ1.0mm、304不锈钢板 层板:δ1.0mm、304不锈钢方板 立柱:δ1.0mm*直径51、304不锈钢圆管 台脚通:ф51不锈钢连子弹脚 支撑梁:不锈钢制作 15mm夹心板 | E150: 台 | F150: 1 | G150: 1200 | H150: 1200 | J150: 厂制品
A151: BB12 | B151: 平放式洗碗机 | C151: 1600*900*1450 | D151: 功率：47KW/380V 最大洗涤量：800套/小时 ●采用国标 304 不锈钢材质，坚实耐用，符合食品接触安全要求 ●主洗温度 60-70℃，漂洗温度 82-95℃，消毒更彻底 ●食品级传动平齿链带材质，耐高温，抗老化，更卫生 ●一键启动，无需专业人士操作，更直观，更简便 ●不锈钢喷淋臂，内凹式清洗孔设计，防堵塞，清洗无死角 ●主洗采用上四下三组喷淋臂，更强劲，抽拉式可拆卸，易清洗 ●电机扭矩保护系统，防止餐具滑落损坏设备 ●餐具出口防卡装置，多重保护感应系统，保障设备无故障运行 ●控制箱采用机电控制系统，耐环境，耐使用，寿命长，维修方便，维修成本低 ●平放式洗碗机带压链设计，适合各种异型餐具清洗 | E151: 台 | F151: 1 | G151: 27000 | H151: 27000
A152: BB13 | B152: 不锈钢油网烟罩 | C152: 1800*1100*500 | D152: 说明：采用优质304不锈钢板制作 厚度：δ1.0mm、304不锈钢板 | E152: 米 | F152: 1.8 | G152: 950 | H152: 1710 | J152: 厂制品
A153: BB14 | B153: 传菜食梯（验收） | C153: 二层二站 | D153: 两层两站、推车式 （不含井道基础建设） | E153: 台 | F153: 1 | G153: 35000 | H153: 35000
A154: 其它
A155: 1 | B155: 感应水池水龙头 | D155: 全自动红外线感应，精铜龙头，晶钻电镀，坚固耐用。 | E155: 套 | F155: 4 | G155: 80 | H155: 320
A156: 2 | B156: 不锈钢份数盆 | D156: 说明：采用优质304不锈钢制作 | E156: 个 | F156: 30 | G156: 60 | H156: 1800 | J156: 厂制品
A157: 3 | B157: 蒸饭车饭盘 | C157: 与设备匹配 | D157: 说明：采用优质304不锈钢制作 | E157: 个 | F157: 36 | G157: 20 | H157: 720 | J157: 厂制品
A158: 4 | B158: 烤盘 | C158: 与设备匹配 | E158: 个 | F158: 6 | G158: 35 | H158: 210 | J158: 厂制品
A159: 5 | B159: 保温车汤桶 | C159: 与设备匹配 | D159: 食品级304不锈钢 | E159: 个 | F159: 8 | G159: 150 | H159: 1200 | J159: 厂制品
A160: 6 | B160: 挡鼠板 | C160: H:600mm | D160: 说明：采用不锈钢板制作 | E160: 个 | F160: 6 | G160: 300 | H160: 1800 | J160: 厂制品
A161: 三层烹饪/面点排烟管道设备
A162: 1 | B162: 不锈钢灶后挡板 | C162: L*1000*20 | D162: 说明：采用优质304不锈钢板制作 厚度：δ1.0mm、304不锈钢板 | E162: M2 | F162: 17.8 | G162: 400 | H162: 7120 | J162: 厂制品
A163: 2 | B163: 商用风柜 | C163: 15KW | D163: 说明：动力电机即风柜心脏，采用名牌电机，线圈，使其动能更强劲且噪音更低，振动更小。转动叶轮采用多翼式铝制合金超薄叶片组成，重量更轻，使其转动负荷更小，两大优势决定其高性能，内配隔音层网状，达到消音效果。 | E163: 台 | F163: 1 | G163: 8500 | H163: 8500
A164: 3 | B164: 风机启动保护器 | C164: 与风机配套 | D164: 说明:内配置空开、交流接触器、电动机综合保护器、第二次启动装置；通过低电压启动高电压，对风柜起到，缺相自动断电、启动电流过大时自动断电、漏电时自动断电； 可有效减少风机在启动时惯性对叶轮的冲击和电动机启动过大的启动电流对供电线路的影响，并且对风机电动机起到短路，缺相，过载，失压等保护作用。 | E164: 台 | F164: 1 | G164: 800 | H164: 800
A165: 4 | B165: 风机支架及托油盘 | C165: 定制 | D165: 说明:采用10#槽钢,2度油漆,防锈处理 | E165: 套 | F165: 1 | G165: 1200 | H165: 1200 | I165: 现场定制 | J165: 厂制品
A166: 2 | B166: 低空油烟净化器 | C166: 42000风量 | D166: 电压选择低能耗电源电路，耗电省机体：采用模具冲压一次成型、箱体内外喷塑处理，内部单元极板采用优质轻型铝板，防腐性能好、使用寿命长。 工作原理：内部装有独特的油类碰吸单元，油烟经过净化器，在高压等离子电场的作用下，将微小的油颗粒与气体进行电离荷电，带电的微小离子（油颗粒）被吸附单元所收集，并流入和沉积到净化器的储油箱内，烟尘内的有害气体，被电场内所产生的臭氧所杀菌，并去除了异味，有害气体被除掉，洁净的空气经出风口排出。 | E166: 台 | F166: 1 | G166: 24000 | H166: 24000
A167: 2 | B167: 净化器支架 | C167: 定制 | D167: 说明:采用10#槽钢,2度油漆,防锈处理 | E167: 台 | F167: 1 | G167: 1200 | H167: 1200
A168: 5 | B168: 不锈钢烟管 | C168: 35000*500*500 | D168: 说明：采用优质304不锈钢板制作 厚度：δ1.0mm、304不锈钢板 | E168: M2 | F168: 76 | G168: 260 | H168: 19760 | J168: 厂制品
A169: 6 | B169: 不锈钢烟管 | C169: 35000*1500*500 | D169: 说明：采用优质304不锈钢板制作 厚度：δ1.0mm、304不锈钢板 | E169: M2 | F169: 138 | G169: 260 | H169: 35880 | J169: 厂制品
A170: 7 | B170: 排烟弯头 | C170: 500*500 | D170: 说明：采用优质304不锈钢板制作 厚度：δ1.0mm、304不锈钢板 | E170: M2 | F170: 18 | G170: 200 | H170: 3600 | J170: 厂制品
A171: 8 | B171: 排烟弯头 | C171: 1500*500 | D171: 说明：采用优质304不锈钢板制作 厚度：δ1.0mm、304不锈钢板 | E171: M2 | F171: 15 | G171: 280 | H171: 4200 | J171: 厂制品
A172: 9 | B172: 软接 | C172: 定制 | D172: 采用优质帆布 | E172: 套 | F172: 1 | G172: 200 | H172: 200 | J172: 厂制品
A173: 10 | B173: 烟管内置法兰 | C173: 定制 | D173: 说明：采用优质304不锈钢板制作 | E173: 副 | F173: 20 | G173: / | H173: 0 | J173: 厂制品
A174: 11 | B174: 三角架 | C174: 定制 | D174: 说明：采用防锈喷漆角铁 | E174: 副 | F174: 10 | G174: 50 | H174: 500 | J174: 厂制品
A175: 12 | B175: 变径 | C175: 定制 | D175: 说明：采用优质304不锈钢板制作 板厚：δ1.0mm不锈钢 | E175: 套 | F175: 1 | G175: 800 | H175: 800 | J175: 厂制品
A176: 13 | B176: 防火阀 | C176: 定制 | D176: 说明：采用A3钢板作制，外涂防火、防锈漆。 | E176: 个 | F176: 6 | G176: 900 | H176: 5400 | J176: 厂制品
A177: 14 | B177: 止回阀 | C177: 定制 | D177: 说明：采用A3钢板作制，外涂防火、防锈漆。 | E177: 个 | F177: 1 | G177: 600 | H177: 600 | J177: 厂制品
A178: 三层粉面排烟设备 | J178: 厂制品
A179: 1 | B179: 不锈钢烟管 | C179: 5000*400*400 | D179: 说明：采用优质304不锈钢板制作 厚度：δ1.0mm、304不锈钢板 | E179: M2 | F179: 8 | G179: 260 | H179: 2080 | J179: 厂制品
A180: 2 | B180: 排烟弯头 | C180: 400*400 | D180: 说明：采用优质304不锈钢板制作 厚度：δ1.0mm、304不锈钢板 | E180: M2 | F180: 3 | G180: 280 | H180: 840 | J180: 厂制品
A181: 3 | B181: 烟管内置法兰 | C181: 定制 | D181: 说明：采用优质304不锈钢板制作 | E181: 副 | F181: 5 | G181: / | H181: 0 | J181: 厂制品
A182: 4 | B182: 三角架 | C182: 定制 | D182: 说明：采用防锈喷漆角铁 | E182: 副 | F182: 2 | G182: 50 | H182: 100 | J182: 厂制品
A183: 5 | B183: 百叶窗 | C183: 定制 | D183: 说明：采用优质铝合金 | E183: 个 | F183: 1 | G183: 150 | H183: 150 | J183: 厂制品
A184: 三层洗碗间排烟设备 | J184: 厂制品
A185: 1 | B185: 不锈钢烟罩上封板 | C185: L*1000*20 | D185: 说明：采用优质304不锈钢板制作 厚度：δ1.0mm、304不锈钢板 | E185: M2 | F185: 4 | G185: 400 | H185: 1600 | J185: 厂制品
A186: 2 | B186: 轴流风机 | C186: 5号 | D186: 运转平稳,效率高,噪声低,能耗省 | E186: 台 | F186: 1 | G186: 1200 | H186: 1200
A187: 3 | B187: 风机启动保护器 | C187: 与风机配套 | D187: 说明:内配置空开、交流接触器、电动机综合保护器、第二次启动装置；通过低电压启动高电压，对风柜起到，缺相自动断电、启动电流过大时自动断电、漏电时自动断电； 可有效减少风机在启动时惯性对叶轮的冲击和电动机启动过大的启动电流对供电线路的影响，并且对风机电动机起到短路，缺相，过载，失压等保护作用。 | E187: 台 | F187: 1 | G187: 650 | H187: 650
A188: 4 | B188: 风机支架及托油盘 | C188: 定制 | D188: 说明:采用10#槽钢,2度油漆,防锈处理 | E188: 套 | F188: 1 | G188: 500 | H188: 500 | I188: 现场定制 | J188: 厂制品
A189: 5 | B189: 不锈钢烟管 | C189: 8000*400*400 | D189: 说明：采用优质304不锈钢板制作 厚度：δ1.0mm、304不锈钢板 | E189: M2 | F189: 13 | G189: 260 | H189: 3380 | J189: 厂制品
A190: 6 | B190: 排烟弯头 | C190: 400*400 | D190: 说明：采用优质304不锈钢板制作 厚度：δ1.0mm、304不锈钢板 | E190: M2 | F190: 11 | G190: 280 | H190: 3080 | J190: 厂制品
A191: 7 | B191: 软接 | C191: 定制 | D191: 采用优质帆布 | E191: 套 | F191: 1 | G191: 200 | H191: 200 | J191: 厂制品
A192: 8 | B192: 烟管内置法兰 | C192: 定制 | D192: 说明：采用优质304不锈钢板制作 | E192: 副 | F192: 8 | G192: / | H192: 0 | J192: 厂制品
A193: 9 | B193: 三角架 | C193: 定制 | D193: 说明：采用防锈喷漆角铁 | E193: 副 | F193: 4 | G193: 50 | H193: 200 | J193: 厂制品
A194: 10 | B194: 变径 | C194: 定制 | D194: 说明：采用优质304不锈钢板制作 板厚：δ1.0mm不锈钢 | E194: 套 | F194: 1 | G194: 950 | H194: 950 | J194: 厂制品
A195: 11 | B195: 百叶窗 | C195: 定制 | D195: 说明：采用优质铝合金 | E195: 个 | F195: 1 | G195: 180 | H195: 180 | J195: 厂制品
A196: 四层粉面排烟设备 | J196: 厂制品
A197: 1 | B197: 不锈钢烟管 | C197: 5000*400*400 | D197: 说明：采用优质304不锈钢板制作 厚度：δ1.0mm、304不锈钢板 | E197: M2 | F197: 8 | G197: 260 | H197: 2080 | J197: 厂制品
A198: 2 | B198: 排烟弯头 | C198: 400*400 | D198: 说明：采用优质304不锈钢板制作 厚度：δ1.0mm、304不锈钢板 | E198: M2 | F198: 3 | G198: 280 | H198: 840 | J198: 厂制品
A199: 3 | B199: 烟管内置法兰 | C199: 定制 | D199: 说明：采用优质304不锈钢板制作 | E199: 副 | F199: 5 | G199: / | H199: 0 | J199: 厂制品
A200: 4 | B200: 三角架 | C200: 定制 | D200: 说明：采用防锈喷漆角铁 | E200: 副 | F200: 2 | G200: 50 | H200: =ROUND(F200*G200,0) -> 100 | J200: 厂制品
... 33 more rows
